bitfinex/quotes_SOLUSD_20241126
["timestamp","ask_amount","ask_price","bid_price","bid_amount"]
[1732651329412,20.28887551,229.44,229.37,4.3596]
[1732651329618,0.12549,229.5,229.35,51.1963]
[1732651329619,0.12549,229.5,229.35,9.3599]
[1732651329791,0.12549,229.49,229.35,25.28887551]
[1732651329993,20.28887551,229.45,229.37,20.28887551]
[1732651330191,66.796947,229.57,229.35,9.36]
[1732651330192,0.12549,229.47,229.35,9.36]
[1732651330613,0.12549,229.47,229.41,20.28887551]
[1732651330800,0.12549,229.47,229.4,20.28887551]
[1732651331002,20.28887551,229.46,229.38,20.28887551]
[1732651331318,20.28887551,229.49,229.41,20.28887551]
[1732651331508,0.12549,229.48,229.41,20.28887551]
[1732651331821,0.12549,229.48,229.39,5.0]
[1732651331822,0.12549,229.48,229.42,20.28887551]
[1732651332021,20.28887551,229.45,229.38,20.28887551]
[1732651332198,20.28887551,229.46,229.39,25.28887551]
[1732651332405,20.28887551,229.46,229.39,20.28887551]
[1732651332703,20.28887551,229.42,229.36,5.0]
[1732651333015,20.28887551,229.43,229.36,20.28887551]
[1732651333215,0.12549,229.52,229.37,4.3597]
[1732651333409,20.28887551,229.49,229.42,20.28887551]
[1732651333733,20.28887551,229.49,229.4,5.0]
[1732651333734,20.28887551,229.49,229.41,20.28887551]
[1732651334021,65.62247551,229.57,229.43,5.0]
[1732651334229,45.3336,229.57,229.47,5.0]
[1732651334406,12.2904,229.57,229.45,5.0]
[1732651334611,12.2904,229.57,229.4,20.0]
[1732651334612,12.2904,229.57,229.47,5.0]
[1732651335235,12.2904,229.57,229.5,20.28887551]
[1732651335530,20.28887551,229.62,229.54,20.28887551]
[1732651335706,20.28887551,229.62,229.55,20.28887551]
[1732651335902,20.28887551,229.66,229.59,20.28887551]
[1732651336108,12.9424,229.69,229.6,5.0]
[1732651336413,12.9424,229.75,229.6,5.0]
[1732651336899,12.9424,229.75,229.62,5.0]
[1732651337107,20.28887551,229.71,229.63,20.28887551]
[1732651337502,20.28887551,229.71,229.65,20.28887551]
[1732651337801,20.28887551,229.73,229.66,20.28887551]
[1732651338006,33.23127551,229.75,229.68,20.28887551]
[1732651338207,20.28887551,229.77,229.68,20.28887551]
[1732651338398,20.28887551,229.75,229.68,20.28887551]
[1732651338604,20.28887551,229.79,229.7,20.28887551]
[1732651339338,20.28887551,229.77,229.7,20.28887551]
[1732651340927,20.28887551,229.75,229.69,5.0]
[1732651341125,0.12549,229.76,229.7,20.28887551]
[1732651342106,12.9424,229.82,229.64,5.0]
[1732651342107,20.41436551,229.71,229.64,5.0]
[1732651342306,20.28887551,229.75,229.67,25.28887551]
[1732651342608,4.3504,229.87,229.58,13.2851]
[1732651342609,13.36311827,229.88,229.73,25.28887551]
[1732651342806,12.2063,229.88,229.75,5.0]
[1732651343002,12.2063,229.88,229.77,5.0]
[1732651343415,12.2063,229.88,229.79,5.0]
[1732651343825,20.28887551,229.86,229.78,20.28887551]
[1732651344230,20.28887551,229.86,229.79,5.0]
[1732651345022,20.28887551,229.86,229.78,20.28887551]
[1732651345222,20.28887551,229.87,229.79,25.28887551]
[1732651345532,20.28887551,229.89,229.81,20.28887551]
[1732651345840,0.12549,229.88,229.81,20.28887551]
[1732651346433,20.28887551,229.86,229.78,20.28887551]
[1732651346606,20.28887551,229.82,229.74,25.28887551]
[1732651346810,12.2063,229.96,229.74,5.0]
[1732651347034,20.28887551,229.89,229.82,5.0]
[1732651347329,5.0,229.92,229.75,5.0]
[1732651347635,5.0,229.89,229.73,5.0]
[1732651347834,0.74713786,229.89,229.78,6.71824107]
[1732651348024,0.74713786,229.89,229.75,10.97110321]
[1732651348228,0.12549,229.88,229.77,4.25286214]
[1732651348527,20.28887551,229.85,229.79,9.25286214]
[1732651348730,20.28887551,229.87,229.79,29.54173765]
[1732651348947,20.28887551,229.89,229.84,5.0]
[1732651349242,20.28887551,229.87,229.8,4.25286214]
[1732651351435,20.28887551,229.94,229.9,4.25286214]
[1732651351612,20.28887551,229.94,229.91,4.25286214]
[1732651351930,20.28887551,229.93,229.85,29.54173765]
[1732651352341,0.518436,230.0,229.9,9.25286214]
[1732651352513,20.28887551,229.96,229.9,9.25286214]
[1732651353120,20.80731151,230.0,229.94,5.0]
[1732651353319,0.518436,230.0,229.96,9.25286214]
[1732651353525,0.518436,230.0,229.94,4.25286214]
[1732651353839,0.518436,230.0,229.92,5.0]
[1732651354020,20.28887551,229.98,229.92,5.0]
[1732651354218,20.28887551,229.98,229.92,9.25286214]
[1732651354445,20.80731151,230.0,229.94,5.0]
[1732651354734,0.518436,230.0,229.97,5.0]
[1732651355712,0.518436,230.0,229.95,5.0]
[1732651355944,20.28887551,229.98,229.93,4.25286214]
[1732651356109,20.28887551,229.97,229.92,5.0]
[1732651356312,20.28887551,229.97,229.96,4.25286214]
[1732651356519,20.28887551,229.98,229.96,4.25286214]
[1732651356743,20.28887551,229.99,229.96,4.25286214]
[1732651356915,20.80731151,230.0,229.95,5.0]
[1732651357331,20.80731151,230.0,229.96,4.25286214]
[1732651357613,20.28887551,229.99,229.96,4.25286214]
[1732651358322,20.28887551,229.99,229.94,4.25286214]
[1732651358625,20.28887551,229.99,229.96,4.25286214]
[1732651358826,20.28887551,229.98,229.96,4.25286214]
[1732651359133,0.518436,230.0,229.95,5.0]
[1732651359341,0.518436,230.0,229.99,4.25286214]
[1732651359830,36.40761337,230.12,229.99,4.25286214]
[1732651359831,20.28887551,230.07,229.99,24.54173765]
[1732651360037,20.28887551,230.05,229.99,4.25286214]
[1732651360952,20.28887551,230.05,229.9,20.28887551]
[1732651361130,20.28887551,230.05,229.75,93.30381071]
[1732651361131,20.0,229.84,229.68,20.28887551]
[1732651361449,20.28887551,229.78,229.7,20.28887551]
[1732651361817,20.0,229.84,229.7,20.28887551]
[1732651362021,20.0,229.84,229.64,1.1819705]
[1732651362022,20.28887551,229.82,229.74,20.28887551]
[1732651362643,20.28887551,229.8,229.72,20.28887551]
[1732651362846,20.28887551,229.78,229.68,20.28887551]
[1732651363018,20.28887551,229.74,229.66,20.28887551]
[1732651363221,20.28887551,229.76,229.68,20.28887551]
[1732651363421,4.5673,229.89,229.7,20.28887551]
[1732651363422,20.28887551,229.78,229.7,20.28887551]
[1732651363720,20.28887551,229.8,229.72,20.28887551]
[1732651363919,20.28887551,229.84,229.76,20.28887551]
[1732651364117,20.28887551,229.8,229.7,20.28887551]
[1732651364317,20.28887551,229.8,229.72,20.28887551]
[1732651364929,5.0,229.94,229.68,16.5844]
[1732651364930,20.28887551,229.82,229.74,20.28887551]
[1732651365134,20.28887551,229.86,229.78,20.28887551]
[1732651365545,20.28887551,229.84,229.76,20.28887551]
[1732651367051,20.28887551,229.79,229.72,20.28887551]
[1732651367436,20.28887551,229.78,229.7,20.28887551]
[1732651367755,20.28887551,229.75,229.67,20.28887551]
[1732651367933,20.28887551,229.74,229.67,20.28887551]
[1732651368253,20.28887551,229.7,229.62,20.28887551]
[1732651368430,20.28887551,229.71,229.64,20.28887551]
[1732651368623,20.28887551,229.72,229.64,20.28887551]
[1732651368828,20.28887551,229.76,229.61,16.5858]
[1732651369051,0.12549,229.8,229.61,16.5858]
[1732651369249,20.28887551,229.75,229.68,20.28887551]
[1732651369556,20.28887551,229.76,229.69,20.28887551]
[1732651369854,20.28887551,229.76,229.61,16.5858]
[1732651369855,20.28887551,229.79,229.72,20.28887551]
[1732651370143,20.28887551,229.79,229.62,5.0]
[1732651370144,20.28887551,229.79,229.71,20.28887551]
[1732651370527,20.28887551,229.79,229.72,20.28887551]
[1732651370729,20.28887551,229.78,229.71,20.28887551]
[1732651371254,20.28887551,229.79,229.72,20.28887551]
[1732651371557,20.28887551,229.78,229.7,20.28887551]
[1732651371761,20.28887551,229.79,229.72,20.28887551]
[1732651372058,20.28887551,229.83,229.75,20.28887551]
[1732651372350,20.28887551,229.84,229.77,20.28887551]
[1732651372723,20.28887551,229.83,229.76,20.28887551]
[1732651373459,20.28887551,229.82,229.75,20.28887551]
[1732651374053,20.28887551,229.81,229.74,20.28887551]
[1732651374259,20.28887551,229.77,229.69,20.28887551]
[1732651374553,20.28887551,229.76,229.68,20.28887551]
[1732651374857,20.28887551,229.74,229.67,20.28887551]
[1732651375145,20.28887551,229.76,229.68,20.28887551]
[1732651375453,20.28887551,229.76,229.69,20.28887551]
[1732651375761,20.28887551,229.75,229.68,20.28887551]
[1732651376050,20.28887551,229.77,229.7,20.28887551]
[1732651376853,20.28887551,229.76,229.69,20.28887551]
[1732651377036,20.28887551,229.8,229.73,20.28887551]
[1732651377229,20.28887551,229.83,229.75,20.28887551]
[1732651377731,20.28887551,229.84,229.76,20.28887551]
[1732651378648,20.28887551,229.82,229.74,20.28887551]
[1732651380062,20.41436551,229.83,229.75,20.28887551]
[1732651380231,20.28887551,229.78,229.71,20.28887551]
[1732651380431,20.28887551,229.73,229.63,4.3548]
[1732651380657,20.0,229.8,229.59,4.3554]
[1732651380956,20.0,229.8,229.58,4.3556]
[1732651380957,20.12549,229.79,229.58,4.3556]
[1732651381160,12.23789,229.76,229.56,31.0891]
[1732651381334,0.12549,229.72,229.56,31.0891]
[1732651381530,0.12549,229.72,229.56,35.4452]
[1732651381835,20.28887551,229.68,229.6,20.28887551]
[1732651382130,1.7413,229.71,229.59,20.28887551]
[1732651382131,20.28887551,229.67,229.59,20.28887551]
[1732651382536,20.28887551,229.67,229.54,4.3563]
[1732651382537,20.28887551,229.67,229.6,20.28887551]
[1732651382758,20.28887551,229.68,229.6,20.28887551]
[1732651383957,20.28887551,229.63,229.56,20.28887551]
[1732651384263,20.28887551,229.6,229.53,20.28887551]
[1732651384432,20.28887551,229.54,229.5,13.43648214]
[1732651384636,20.28887551,229.54,229.43,40.82788242]
[1732651384637,0.12549,229.62,229.43,18.31341814]
[1732651385037,0.12549,229.62,229.43,4.876936]
[1732651385360,0.12549,229.63,229.43,4.876936]
[1732651385545,20.28887551,229.58,229.5,20.28887551]
[1732651385746,20.28887551,229.57,229.5,20.28887551]
[1732651385940,20.28887551,229.58,229.5,20.28887551]
[1732651386146,20.28887551,229.58,229.51,20.28887551]
[1732651386465,20.28887551,229.62,229.55,20.28887551]
[1732651386662,20.28887551,229.62,229.54,20.28887551]
[1732651386964,20.28887551,229.66,229.59,20.28887551]
[1732651387133,14.6234,229.67,229.47,13.43648214]
[1732651387337,14.6234,229.67,229.47,23.776884]
[1732651387338,20.28887551,229.62,229.47,23.776884]
[1732651387552,20.28887551,229.64,229.57,20.28887551]
[1732651387749,20.28887551,229.63,229.56,20.28887551]
[1732651388454,20.28887551,229.62,229.54,20.28887551]
[1732651388658,20.28887551,229.6,229.53,20.28887551]
[1732651388957,20.28887551,229.56,229.46,4.3579]
[1732651389157,0.12549,229.66,229.46,4.3579]
[1732651389462,0.12549,229.66,229.54,20.28887551]
[1732651389767,20.28887551,229.6,229.53,20.28887551]
[1732651390242,1.86719,229.66,229.44,31.87296428]
[1732651390243,20.28887551,229.58,229.51,20.28887551]
[1732651390441,20.28887551,229.57,229.5,20.28887551]
[1732651390739,6.22139,229.66,229.42,24.94047665]
[1732651390740,20.28887551,229.54,229.47,20.28887551]
[1732651391043,20.28887551,229.52,229.45,20.28887551]
[1732651391243,20.28887551,229.47,229.4,20.28887551]
[1732651391468,20.28887551,229.46,229.39,20.28887551]
[1732651391645,1.7427,229.52,229.4,20.28887551]
[1732651391956,20.28887551,229.48,229.4,20.28887551]
[1732651392458,20.28887551,229.44,229.36,20.28887551]
[1732651392664,20.28887551,229.45,229.38,20.28887551]
[1732651393273,20.28887551,229.45,229.33,30.5696]
[1732651393274,20.28887551,229.44,229.37,20.28887551]
[1732651393455,20.28887551,229.44,229.34,20.28887551]
[1732651393662,20.28887551,229.44,229.35,20.28887551]
[1732651393967,20.28887551,229.51,229.43,20.80731151]
[1732651394140,32.0555,229.59,229.43,4.877036]
[1732651394342,46.6795,229.59,229.43,0.518436]
[1732651394544,51.035,229.59,229.43,0.518436]
[1732651394736,56.035,229.59,229.43,0.518436]
[1732651395155,10.0,229.56,229.43,0.518436]
[1732651395467,20.28887551,229.46,229.43,0.518436]
[1732651395655,20.12549,229.51,229.43,0.518436]
[1732651396177,0.12549,229.49,229.43,0.518436]
[1732651396953,20.28887551,229.44,229.43,0.518436]
[1732651397356,20.41436551,229.44,229.43,0.518436]
[1732651397957,20.28887551,229.44,229.43,0.518436]
[1732651398462,22.15766551,229.44,229.43,0.518436]
[1732651398757,35.25956551,229.44,229.43,0.518436]
[1732651399541,67.40526551,229.44,229.43,0.518436]
[1732651399746,66.96946551,229.44,229.43,0.518436]
[1732651401266,34.82376551,229.44,229.43,0.518436]
[1732651403740,34.82376551,229.44,229.22,23.9636]
[1732651403741,34.82376551,229.44,229.26,20.28887551]
[1732651403936,20.28887551,229.33,229.26,24.65067551]
[1732651404154,14.53489,229.44,229.28,20.28887551]
[1732651404155,20.28887551,229.36,229.28,20.28887551]
[1732651404442,3.2677,229.52,229.29,20.0]
[1732651404642,21.57314477,229.73,229.29,20.0]
[1732651404643,20.28887551,229.46,229.29,20.0]
[1732651404866,13.1019,229.5,229.4,20.28887551]
[1732651405264,20.28887551,229.45,229.37,20.28887551]
[1732651405559,20.28887551,229.48,229.4,20.28887551]
[1732651405875,20.28887551,229.46,229.39,20.28887551]
[1732651406453,32.64047686,229.46,229.39,32.64047686]
[1732651406657,32.64047686,229.46,229.39,36.99977686]
[1732651406960,32.64047686,229.47,229.4,32.64047686]
[1732651407144,32.64047686,229.46,229.39,32.64047686]
[1732651407349,32.64047686,229.47,229.4,32.64047686]
[1732651407551,32.64047686,229.47,229.39,32.64047686]
[1732651408252,32.64047686,229.48,229.41,32.64047686]
[1732651408970,32.64047686,229.48,229.33,33.2583]
[1732651408971,32.64047686,229.42,229.23,38.2583]
[1732651409263,0.12549,229.42,229.24,4.3622]
[1732651409671,0.12549,229.42,229.23,33.2583]
[1732651409959,0.12549,229.39,229.23,33.2583]
[1732651410164,1.3078,229.38,229.23,33.2583]
[1732651410362,0.12549,229.37,229.2,4.881236]
[1732651410745,32.64047686,229.28,229.21,32.64047686]
[1732651410962,32.64047686,229.35,229.2,0.518436]
[1732651410963,32.64047686,229.3,229.22,32.64047686]
[1732651411141,32.64047686,229.28,229.2,33.15891286]
[1732651411352,32.64047686,229.27,229.2,0.518436]
[1732651411675,32.64047686,229.26,229.2,0.518436]
[1732651411858,0.12549,229.34,229.2,0.518436]
[1732651411859,32.64047686,229.25,229.2,0.518436]
[1732651412453,1.3085,229.27,229.2,0.518436]
[1732651412454,32.64047686,229.21,229.2,0.518436]
[1732651413478,32.76596686,229.21,229.2,0.518436]
[1732651413658,32.64047686,229.21,229.2,0.518436]
[1732651413971,32.64047686,229.25,229.2,0.518436]
[1732651414176,32.64047686,229.23,229.2,0.518436]
[1732651414673,12.6675,229.28,229.2,0.518436]
[1732651414872,32.64047686,229.24,229.2,0.518436]
[1732651415179,32.64047686,229.25,229.2,0.518436]
[1732651415481,32.64047686,229.22,229.2,0.518436]
[1732651415657,32.64047686,229.21,229.2,0.518436]
[1732651415907,32.76596686,229.21,229.2,0.518436]
[1732651417161,32.64047686,229.21,229.2,0.518436]
[1732651417380,1.3085,229.27,229.2,0.518436]
[1732651417674,32.64047686,229.22,229.2,0.518436]
[1732651417984,12.6675,229.28,229.2,0.518436]
[1732651417985,32.64047686,229.23,229.2,0.518436]
[1732651418184,12.6675,229.28,229.2,0.518436]
[1732651418185,32.64047686,229.21,229.2,0.518436]
[1732651419566,32.76596686,229.21,229.2,0.518436]
[1732651420956,56.54285086,229.21,229.2,0.518436]
[1732651421159,61.54285086,229.21,229.2,3.6e-05]
[1732651421356,56.54285086,229.21,229.2,3.6e-05]
[1732651422076,56.54285086,229.21,228.97,0.518436]
[1732651422077,20.12549,229.17,229.0,32.64047686]
[1732651422387,32.64047686,229.08,229.0,32.64047686]
[1732651422561,32.64047686,229.13,229.06,32.64047686]
[1732651422760,32.64047686,229.14,229.07,32.64047686]
[1732651422956,32.64047686,229.13,229.06,32.64047686]
[1732651423180,32.64047686,229.12,229.05,32.64047686]
[1732651423476,32.64047686,229.09,229.02,32.64047686]
[1732651423866,32.64047686,229.09,229.01,32.64047686]
[1732651424058,32.64047686,229.08,229.01,32.64047686]
[1732651424259,32.64047686,229.09,229.01,32.64047686]
[1732651424460,32.64047686,229.08,229.01,32.64047686]
[1732651426058,32.64047686,229.07,229.0,32.64047686]
[1732651426260,20.15484569,229.07,229.0,20.15484569]
[1732651426478,20.15484569,229.06,228.99,20.15484569]
[1732651426672,20.15484569,229.03,228.97,0.518436]
[1732651427060,20.15484569,229.02,228.97,0.518436]
[1732651427263,20.15484569,229.04,228.97,20.67328169]
[1732651427483,20.15484569,229.05,228.98,20.15484569]
[1732651427666,20.15484569,229.06,228.99,20.15484569]
[1732651428076,20.15484569,229.1,229.04,20.15484569]
[1732651428383,20.15484569,229.12,229.05,20.15484569]
[1732651428683,20.15484569,229.14,229.07,20.15484569]
[1732651428892,20.15484569,229.14,228.97,9.885636]
[1732651428893,1.309,229.18,229.01,20.0]
[1732651429469,10.0,229.17,228.97,0.518436]
[1732651429975,20.15484569,229.04,228.97,20.67328169]
[1732651430358,20.15484569,228.99,228.97,0.518436]
[1732651430561,20.15484569,228.98,228.97,0.518436]
[1732651431595,20.15484569,228.99,228.97,0.518436]
[1732651431882,20.15484569,229.03,228.97,0.518436]
[1732651432381,20.15484569,229.01,228.97,0.518436]
[1732651433259,1.3097,229.05,228.97,0.518436]
[1732651433260,1.43509,229.08,228.97,0.518436]
[1732651433486,20.15484569,229.06,228.99,20.15484569]
[1732651433795,20.15484569,229.12,229.05,20.15484569]
[1732651433965,1.309,229.18,229.0,32.3371]
[1732651434173,12.5941,229.19,229.03,20.0]
[1732651434366,1.3088,229.22,229.03,20.0]
[1732651434367,1.3088,229.22,229.04,24.49149]
[1732651434669,1.3088,229.22,229.04,24.366]
[1732651435169,20.15484569,229.19,229.12,20.15484569]
[1732651435367,20.15484569,229.2,229.13,20.15484569]
[1732651435589,20.15484569,229.23,229.15,20.15484569]
[1732651436291,32.70618249,229.23,229.16,32.70618249]
[1732651436581,32.70618249,229.22,229.15,32.70618249]
[1732651436763,32.70618249,229.22,229.1,20.0]
[1732651436966,32.70618249,229.24,229.17,32.70618249]
[1732651437180,1.3083,229.3,229.15,32.70618249]
[1732651437181,32.70618249,229.22,229.15,32.70618249]
[1732651437381,1.3083,229.3,229.1,20.0]
[1732651437681,32.70618249,229.24,229.17,32.70618249]
[1732651438773,32.70618249,229.25,229.18,32.70618249]
[1732651439089,32.70618249,229.2,229.12,32.70618249]
[1732651439280,32.70618249,229.19,229.12,32.70618249]
[1732651439469,32.70618249,229.22,229.09,0.12549]
[1732651439669,32.70618249,229.21,229.11,20.0]
[1732651440089,32.70618249,229.21,229.1,4.3648]
[1732651440284,32.70618249,229.21,229.14,32.70618249]
[1732651440686,32.70618249,229.24,229.16,32.70618249]
[1732651440880,23.776884,229.3,229.11,32.70618249]
[1732651441193,32.70618249,229.15,229.07,32.70618249]
[1732651441492,32.70618249,229.24,229.01,4.3664]
[1732651441493,23.902374,229.23,229.01,4.3664]
[1732651441681,20.0,229.2,229.01,4.3664]
[1732651441873,23.776884,229.19,229.0,32.3371]
[1732651442068,0.12549,229.18,229.0,32.3371]
[1732651442276,0.12549,229.14,229.0,32.3371]
[1732651442586,32.70618249,229.05,228.98,32.70618249]
[1732651442782,32.70618249,229.06,228.99,32.70618249]
[1732651443094,32.70618249,229.04,228.97,33.22461849]
[1732651443294,32.70618249,229.05,228.98,32.70618249]
[1732651443595,32.70618249,229.03,228.97,0.518436]
[1732651444212,32.70618249,229.01,228.97,0.518436]
[1732651444436,32.70618249,228.99,228.97,0.518436]
[1732651444786,29.276884,229.15,228.97,0.518436]
[1732651445090,0.12549,229.09,228.97,0.518436]
[1732651445284,20.0,229.1,228.97,0.518436]
[1732651445485,1.3093,229.12,228.97,0.518436]
[1732651445925,1.3093,229.12,228.97,4.885736]
[1732651446102,32.70618249,229.08,229.0,32.70618249]
[1732651446381,1.3093,229.12,228.99,32.70618249]
[1732651446382,32.70618249,229.07,228.99,32.70618249]
[1732651446582,32.70618249,229.01,228.97,0.518436]
[1732651446784,32.70618249,228.98,228.97,0.518436]
[1732651447484,1.3097,229.05,228.97,0.518436]
[1732651448387,32.70618249,229.04,228.97,33.22461849]
[1732651448702,32.70618249,229.02,228.97,0.518436]
[1732651448883,32.70618249,229.03,228.97,0.518436]
[1732651449088,32.70618249,229.05,228.98,32.70618249]
[1732651449502,32.70618249,229.02,228.97,0.518436]
[1732651449812,1.43499,229.08,228.97,0.518436]
[1732651449813,32.70618249,228.98,228.97,0.518436]
[1732651449989,32.70618249,229.02,228.97,0.518436]
[1732651450189,32.70618249,229.03,228.97,0.518436]
[1732651450395,12.2797,229.07,228.97,33.22461849]
[1732651450596,32.70618249,229.04,228.97,33.22461849]
[1732651450819,32.70618249,229.03,228.97,0.518436]
[1732651450986,32.70618249,229.01,228.97,0.518436]
[1732651451188,32.70618249,228.98,228.97,0.518436]
[1732651453094,34.01628249,228.98,228.97,0.518436]
[1732651453710,32.70618249,228.98,228.97,0.518436]
[1732651453883,32.70618249,229.02,228.97,0.518436]
[1732651454088,32.70618249,229.04,228.97,33.22461849]
[1732651454311,1.3097,229.05,228.97,0.518436]
[1732651454804,32.70618249,228.99,228.97,0.518436]
[1732651455397,32.70618249,229.02,228.97,0.518436]
[1732651456291,20.17060654,228.98,228.97,0.518436]
[1732651457208,20.17060654,228.99,228.97,0.518436]
[1732651457919,4.5839,229.06,228.97,0.518436]
[1732651458111,20.17060654,228.98,228.97,0.518436]
[1732651459119,20.17060654,228.99,228.97,0.518436]
[1732651459431,20.17060654,229.0,228.97,0.518436]
[1732651459619,20.17060654,228.99,228.97,0.518436]
[1732651459801,20.17060654,229.0,228.97,0.518436]
[1732651460235,20.17060654,228.99,228.97,0.518436]
[1732651460737,20.17060654,229.02,228.97,0.518436]
[1732651460965,12.2797,229.07,228.97,20.68904254]
[1732651460966,20.17060654,229.04,228.97,20.68904254]
[1732651461225,21.48030654,229.06,228.98,20.17060654]
[1732651461649,20.17060654,228.99,228.97,0.518436]
[1732651461803,20.17060654,228.98,228.97,0.518436]
[1732651462717,21.48070654,228.98,228.97,0.518436]
[1732651463525,20.17060654,228.98,228.97,0.518436]
[1732651463717,21.48060654,229.0,228.97,0.518436]
[1732651464025,20.17060654,229.0,228.97,0.518436]
[1732651464824,21.48040654,229.04,228.97,20.68904254]
[1732651465229,1.3097,229.06,229.0,20.17060654]
[1732651465419,20.17060654,229.06,228.99,20.17060654]
[1732651465618,32.22760654,229.13,228.97,0.518436]
[1732651465619,20.17060654,229.05,228.98,20.17060654]
[1732651466026,20.17060654,229.03,228.97,0.518436]
[1732651466241,20.17060654,228.98,228.97,0.518436]
[1732651466935,21.48070654,228.98,228.97,0.518436]
[1732651467817,20.17060654,228.99,228.97,0.518436]
[1732651468121,20.17060654,229.0,228.97,0.518436]
[1732651468317,32.77492674,228.99,228.97,0.518436]
[1732651469233,32.77492674,228.98,228.97,0.518436]
[1732651469917,56.67730074,228.98,228.97,0.518436]
[1732651470112,32.77492674,228.98,228.97,0.518436]
[1732651471329,34.08502674,228.98,228.97,0.518436]
[1732651472642,57.98740074,228.98,228.97,0.518436]
[1732651473536,32.77492674,228.98,228.97,0.518436]
[1732651473747,32.77492674,229.01,228.97,0.518436]
[1732651473917,32.77492674,228.98,228.97,0.518436]
[1732651474113,4.584,229.05,228.97,0.518436]
[1732651475130,32.77492674,228.98,228.97,0.518436]
[1732651475631,34.08502674,228.98,228.97,0.518436]
[1732651475823,34.21051674,228.98,228.97,0.518436]
[1732651476021,34.08502674,228.98,228.97,0.518436]
[1732651477418,34.21051674,228.98,228.97,0.518436]
[1732651478143,57.98740074,228.98,228.97,0.518436]
[1732651479236,34.08502674,228.98,228.97,0.518436]
[1732651480829,32.77492674,229.0,228.97,0.518436]
[1732651481029,32.77492674,229.01,228.97,0.518436]
[1732651481237,32.77492674,229.0,228.97,0.518436]
[1732651481948,1.3101,228.99,228.97,0.518436]
[1732651484243,34.08502674,228.99,228.97,0.518436]
[1732651484446,32.77492674,228.98,228.97,0.518436]
[1732651485845,34.08502674,228.98,228.97,0.518436]
[1732651487859,57.98740074,228.98,228.97,0.518436]
[1732651488156,34.08502674,228.98,228.97,0.518436]
[1732651488366,21.48408314,228.98,228.97,0.518436]
[1732651489454,45.38645714,228.98,228.97,0.518436]
[1732651490258,21.60957314,228.98,228.97,0.518436]
[1732651491744,21.48408314,228.98,228.97,0.518436]
[1732651496962,21.48408314,228.98,228.97,3.6e-05]
[1732651496963,45.38645714,228.98,228.97,3.6e-05]
[1732651499865,45.38645714,228.98,228.83,33.139]
[1732651499866,20.17398314,228.87,228.83,33.139]
[1732651500155,20.17398314,228.88,228.83,33.139]
[1732651500359,20.17398314,228.87,228.83,33.139]
[1732651500736,20.17398314,228.91,228.84,20.17398314]
[1732651500934,20.17398314,228.89,228.83,33.139]
[1732651501768,21.48458314,228.9,228.83,53.31298314]
[1732651501965,20.17398314,228.95,228.88,20.17398314]
[1732651502172,6.70422298,229.08,228.87,33.37299]
[1732651502354,4.5834,229.08,228.92,23.776884]
[1732651502666,4.5834,229.08,228.91,20.0]
[1732651502836,4.5834,229.08,228.9,20.0]
[1732651503037,4.5834,229.08,228.91,20.0]
[1732651503240,1.3095,229.08,228.95,20.0]
[1732651503450,20.17398314,229.12,229.05,20.17398314]
[1732651503657,20.17398314,229.16,229.09,20.17398314]
[1732651503861,6.70422298,229.18,229.02,20.17398314]
[1732651503862,21.48298314,229.18,229.11,20.17398314]
[1732651504251,6.70422298,229.23,229.02,20.17398314]
[1732651504252,6.70422298,229.23,229.09,33.0265]
[1732651504469,13.45747312,229.25,229.18,20.17398314]
[1732651504470,26.87820612,229.25,229.18,20.17398314]
[1732651504642,20.17398314,229.22,229.1,12.4529]
[1732651504845,8.01272298,229.26,229.1,12.4529]
[1732651505065,8.01272298,229.26,229.04,12.4529]
[1732651505066,5.0,229.23,229.04,12.4529]
[1732651505265,10.0,229.21,229.04,12.4529]
[1732651505456,10.0,229.21,229.02,33.0265]
[1732651505457,38.71767686,229.2,229.01,20.0]
[1732651505644,20.0,229.17,229.01,20.0]
[1732651505846,1.3086,229.25,229.05,20.0]
[1732651506062,20.0,229.24,229.05,20.0]
[1732651506281,20.17398314,229.08,229.01,20.17398314]
[1732651506581,40.17398314,229.24,228.98,12.4529]
[1732651506582,20.17398314,229.11,229.04,20.17398314]
[1732651506750,20.17398314,229.16,229.03,0.12549]
[1732651506954,20.0,229.21,229.02,0.25098]
[1732651507352,20.17398314,229.19,229.12,20.17398314]
[1732651507679,20.17398314,229.13,229.09,33.0265]
[1732651507856,20.17398314,229.11,229.09,33.0265]
[1732651508045,3.2721,229.21,229.09,33.0265]
[1732651508046,1.3089,229.2,229.09,33.0265]